fUST/lending_fUST_20250616
["ID","MTS","AMOUNT","RATE_DAILY","PERIOD"]
[366044396,1750030243004,-153.0,0.0002411,2]
[366044399,1750030243012,-573.8932911,0.0002411,2]
[366044402,1750030243021,-177.0323298,0.0002411,2]
[366044405,1750030243031,-318.6850561,0.0002411,2]
[366044407,1750030243040,-945.3033232,0.0002411,2]
[366044409,1750030243049,-153.0,0.0002411,2]
[366044411,1750030243058,-240.0,0.00024146,2]
[366044413,1750030243068,-460.0,0.00024164,2]
[366044415,1750030243077,-168.0,0.00024165,2]
[366044417,1750030243086,-460.0,0.0002418,4]
[366044419,1750030243095,-460.0,0.0002418,4]
[366044421,1750030243104,-1000.0,0.00024186,2]
[366044423,1750030243113,-1000.0,0.00024186,2]
[366044425,1750030243122,-1200.0,0.00024186,2]
[366044427,1750030243131,-5000.0,0.00024192,2]
[366044429,1750030243140,-151.0,0.00024192,7]
[366044430,1750030243149,-1000.0,0.00024192,2]
[366044432,1750030243158,-5822.772234,0.00024353,2]
[366044433,1750030243167,-557.12,0.00024383,4]
[366044435,1750030243176,-460.0,0.00024383,4]
[366044437,1750030243185,-4354.98,0.00024383,4]
[366044439,1750030243194,-460.0,0.00024383,4]
[366044441,1750030243204,-460.0,0.00024383,4]
[366044443,1750030243213,-341.29795607,0.0002441,2]
[366044445,1750030243222,-530.0,0.00024411,2]
[366044447,1750030243231,-530.0,0.00024415,2]
[366044449,1750030243240,-460.0,0.00024438,2]
[366044451,1750030243250,-460.0,0.00024454,4]
[366044453,1750030243259,-460.0,0.00024454,4]
[366044455,1750030243268,-273.42306133,0.0002458,2]
[366044457,1750030243277,-2200.0,0.00024634,2]
[366044458,1750030243287,-97316.84225691,0.0002465,2]
[366044460,1750030243297,-5036.40026828,0.0002465,2]
[366044462,1750030243307,-300.17921006,0.0002465,2]
[366044464,1750030243316,-167.573472,0.0002465,7]
[366044466,1750030243326,-167.573472,0.0002465,7]
[366044468,1750030243335,-151.0,0.0002465,7]
[366044470,1750030243345,-151.0,0.0002465,7]
[366044472,1750030243355,-151.0,0.0002465,7]
[366044474,1750030243365,-151.0,0.0002465,7]
[366044476,1750030243374,-460.0,0.00024657,4]
[366044478,1750030243385,-4354.98,0.00024657,4]
[366044480,1750030243394,-460.0,0.00024657,4]
[366044482,1750030243403,-460.0,0.00024657,4]
[366044484,1750030243412,-1000.0,0.00024658,2]
[366044486,1750030243422,-1000.0,0.00024658,2]
[366044487,1750030243430,-1000.0,0.00024658,2]
[366044489,1750030243440,-1000.0,0.00024658,2]
[366044491,1750030243450,-1000.0,0.00024658,2]
[366044493,1750030243460,-1000.0,0.00024658,2]
[366044495,1750030243469,-1000.0,0.00024658,2]
[366044497,1750030243478,-1000.0,0.00024658,2]
[366044499,1750030243487,-1000.0,0.00024658,2]
[366044501,1750030243496,-1000.0,0.00024658,2]
[366044503,1750030243506,-1000.0,0.00024658,2]
[366044505,1750030243516,-1000.0,0.00024658,2]
[366044507,1750030243525,-1000.0,0.00024658,2]
[366044509,1750030243534,-200.0,0.00024658,2]
[366044511,1750030243544,-1000.0,0.00024658,2]
[366044513,1750030243554,-280.0,0.00024658,2]
[366044515,1750030243563,-1000.0,0.00024658,2]
[366044517,1750030243573,-200.0,0.00024658,15]
[366044519,1750030243582,-1000.0,0.00024658,2]
[366044521,1750030243591,-500.0,0.00024658,2]
[366044523,1750030243600,-695.79,0.00024663,2]
[366044525,1750030243609,-500.38873506,0.00024673,2]
[366044527,1750030243619,-250000.0,0.0002468,2]
[366044528,1750030243628,-167.573472,0.0002468,7]
[366044530,1750030243640,-167.573472,0.0002468,7]
[366044532,1750030243650,-151.0,0.0002468,7]
[366044534,1750030243659,-154.989312,0.0002468,7]
[366044536,1750030243668,-151.0,0.0002468,7]
[366044538,1750030243680,-500.0,0.00024685,2]
[366044540,1750030243689,-166.73694563,0.000247,2]
[366044542,1750030243698,-460.0,0.00024712,2]
[366044544,1750030243707,-500.0,0.00024713,2]
[366044546,1750030243716,-460.0,0.00024728,4]
[366044548,1750030243725,-460.0,0.00024728,4]
[366044550,1750030243735,-1500.0,0.00024734,2]
[366044552,1750030243744,-1247.42374378,0.00024734,2]
[366044554,1750030243753,-1800.0,0.00024734,2]
[366044556,1750030243762,-160.0,0.00024739,2]
[366044558,1750030243771,-5000.0,0.0002474,2]
[366044560,1750030243780,-500.0,0.0002474,2]
[366044562,1750030243790,-1500.0,0.0002474,2]
[366044564,1750030243799,-500.0,0.00024768,2]
[366044566,1750030243808,-500.0,0.00024795,2]
[366044568,1750030243817,-2000.0,0.000248,2]
[366044570,1750030243827,-2000.0,0.000248,2]
[366044572,1750030243836,-200.0,0.000248,2]
[366044574,1750030243849,-56571.0,0.000248,2]
[366044576,1750030243858,-167.573472,0.000248,7]
[366044578,1750030243867,-167.573472,0.000248,7]
[366044580,1750030243876,-10488.42976485,0.000248,2]
[366044615,1750030244207,-2719.04395344,0.000248,2]
[366044627,1750030244319,-229.26,0.0002199,10]
[366044629,1750030244328,-140.71967102,0.000248,2]
[366044631,1750030244340,-834.40444356,0.000248,2]
[366044634,1750030244355,-4424.79999392,0.000248,2]
[366044772,1750030245765,-909.4686752,0.000248,2]
[366045142,1750030997836,-596.77575259,0.0002069,2]
[366045143,1750030997860,-333.4313191,0.00020899,2]
[366045144,1750030997887,-175.611551,0.00020942,2]
[366045145,1750030997910,-164.90024098,0.00021064,2]
[366045146,1750030997934,-228.05372286,0.00021164,2]
[366045147,1750030998119,-601.0,0.0002166,2]
[366045148,1750030998144,-601.0,0.0002171,2]
[366045149,1750030998170,-601.0,0.00021761,2]
[366045150,1750030998195,-601.0,0.00021789,2]
[366045151,1750030998218,-601.0,0.00021836,2]
[366045152,1750030998239,-376.16036758,0.00021836,2]
[366045153,1750030998263,-300.0,0.0002191,2]
[366045154,1750030998286,-300.0,0.00021911,2]
[366045155,1750030998307,-500.0,0.00021911,2]
[366045156,1750030998330,-500.0,0.00021911,2]
[366045157,1750030998352,-500.0,0.00021911,2]
[366045158,1750030998374,-233.86000249,0.00021911,2]
[366045159,1750030998397,-500.0,0.00021911,2]
[366045160,1750030998421,-500.0,0.00021911,2]
[366045161,1750030998445,-500.0,0.00021911,2]
[366045162,1750030998468,-453.10103406,0.00021911,2]
[366045163,1750030998490,-500.0,0.00021911,2]
[366045164,1750030998513,-500.0,0.00021911,2]
[366045165,1750030998538,-500.0,0.00021911,2]
[366045166,1750030998564,-500.0,0.00021911,2]
[366045167,1750030998589,-487.73493001,0.00021911,2]
[366045168,1750030998613,-542.24254494,0.00021911,2]
[366045169,1750030998637,-439.72126762,0.00021911,2]
[366045170,1750030998661,-500.0,0.00021911,2]
[366045171,1750030998685,-500.0,0.00021911,2]
[366045172,1750030998710,-500.0,0.00021911,2]
[366045173,1750030998733,-232.5,0.00021911,2]
[366045174,1750030998757,-500.0,0.00021911,2]
[366045175,1750030998782,-423.56454981,0.00021911,2]
[366045176,1750030998807,-258.64037382,0.00021911,2]
[366045177,1750030998832,-500.0,0.00021911,2]
[366045178,1750030998858,-500.0,0.00021911,2]
[366045179,1750030998881,-554.255,0.00021911,2]
[366045180,1750030998905,-446.46973032,0.00021911,2]
[366045181,1750030998929,-500.0,0.00021911,2]
[366045182,1750030998954,-500.0,0.00021911,2]
[366045183,1750030998978,-167.20457866,0.00021911,2]
[366045184,1750030999001,-280.77303416,0.00021912,2]
[366045188,1750031112260,163.102443,0.00013699,2]
[366045194,1750031236143,-468.46208269,0.00021696,2]
[366045195,1750031236169,-169.02027866,0.000219,2]
[366045196,1750031236193,-296.3560643,0.00021916,2]
[366045197,1750031236217,-172.695,0.00021916,2]
[366045198,1750031236240,-300.0,0.00021916,2]
[366045199,1750031236263,-300.0,0.00021916,2]
[366045200,1750031236286,-151.0,0.00021917,2]
[366045201,1750031236307,-460.0,0.00021917,4]
[366045202,1750031236328,-460.0,0.00021917,4]
[366045203,1750031236350,-460.0,0.00021917,4]
[366045204,1750031236372,-460.35625325,0.00021917,2]
[366045205,1750031236395,-460.0,0.00021917,4]
[366045206,1750031236417,-460.0,0.00021917,4]
[366045207,1750031236440,-460.0,0.00021917,4]
[366045208,1750031236462,-1000.0,0.00021917,4]
[366045209,1750031236487,-460.0,0.00021917,4]
[366045210,1750031236509,-460.0,0.00021917,4]
[366045211,1750031236531,-2358.95,0.00021917,4]
[366045212,1750031236555,-460.0,0.00021917,4]
[366045213,1750031236577,-460.0,0.00021917,4]
[366045214,1750031236599,-506.29,0.00021917,4]
[366045215,1750031236624,-460.0,0.00021917,4]
[366045216,1750031236646,-460.0,0.00021917,4]
[366045217,1750031236670,-442.16,0.00021917,4]
[366045218,1750031236695,-460.0,0.00021917,4]
[366045219,1750031236717,-460.0,0.00021917,2]
[366045220,1750031236739,-460.0,0.00021917,4]
[366045221,1750031236763,-460.0,0.00021917,4]
[366045222,1750031236787,-460.0,0.00021917,4]
[366045223,1750031236811,-460.0,0.00021917,4]
[366045224,1750031236833,-460.0,0.00021917,4]
[366045225,1750031236855,-480.0,0.00021917,4]
[366045226,1750031236878,-333.09086601,0.00021917,4]
[366045257,1750031431861,-300.0,0.00021916,2]
[366045259,1750031431871,-460.0,0.00021917,4]
[366045261,1750031431880,-460.0,0.00021917,4]
[366045263,1750031431890,-460.0,0.00021917,4]
[366045265,1750031431900,-460.0,0.00021917,4]
[366045267,1750031431910,-460.0,0.00021917,4]
[366045268,1750031431919,-323.50189135,0.00021917,4]
[366045270,1750031431929,-460.0,0.00021917,4]
[366045272,1750031431938,-318.57007474,0.00021917,4]
[366045291,1750031432134,-141.42992526,0.00021917,4]
[366045294,1750031432148,-600.0,0.00021917,4]
[366045296,1750031432158,-460.0,0.00021917,4]
[366045298,1750031432168,-460.0,0.00021917,4]
[366045300,1750031432178,-514.45069459,0.00021917,4]
[366045302,1750031432188,-460.0,0.00021917,4]
[366045304,1750031432199,-460.0,0.00021917,4]
[366045306,1750031432208,-2260.66,0.00021917,4]
[366045308,1750031432222,-430.0,0.00021917,2]
[366045310,1750031432232,-219.72,0.00021917,4]
[366045312,1750031432242,-460.0,0.00021917,4]
[366045314,1750031432251,-460.0,0.00021917,4]
[366045316,1750031432262,-460.0,0.00021917,4]
[366045318,1750031432272,-460.0,0.00021917,4]
[366045320,1750031432282,-161.84963626,0.00021917,4]
[366045322,1750031432292,-460.0,0.00021917,4]
[366045324,1750031432301,-460.0,0.00021917,4]
[366045326,1750031432311,-460.0,0.00021917,4]
[366045328,1750031432321,-460.0,0.00021917,4]
[366045330,1750031432330,-468.8,0.00021917,4]
[366045332,1750031432340,-460.0,0.00021917,4]
[366045334,1750031432349,-506.88,0.00021917,4]
[366045336,1750031432359,-460.0,0.00021917,4]
[366045337,1750031432368,-460.0,0.00021917,4]
[366045338,1750031432378,-460.0,0.00021917,4]
[366045339,1750031432388,-460.0,0.00021917,4]
[366045340,1750031432397,-460.0,0.00021917,4]
[366045341,1750031432407,-964.89,0.0002192,2]
[366045342,1750031432417,-151.0,0.00021972,7]
[366045343,1750031432427,-151.0,0.00021972,7]
[366045344,1750031432436,-151.0,0.00021972,7]
[366045345,1750031432446,-151.0,0.00021972,7]
[366045346,1750031432456,-165.734728,0.00021972,7]
[366045347,1750031432466,-151.0,0.00021973,7]
[366045348,1750031432475,-151.0,0.00021988,7]
[366045349,1750031432484,-151.0,0.00021988,7]
[366045350,1750031432494,-151.0,0.00021988,7]
[366045351,1750031432503,-151.0,0.00021989,7]
[366045352,1750031432514,-219.545985,0.00021989,7]
[366045353,1750031432523,-151.0,0.00021989,7]
[366045354,1750031432533,-151.0,0.00021992,7]
[366045355,1750031432542,-151.0,0.00021992,7]
[366045356,1750031432552,-151.0,0.00021993,7]
[366045357,1750031432562,-151.0,0.00021993,7]
[366045358,1750031432571,-151.0,0.00021993,7]
[366045359,1750031432581,-151.0,0.00021993,7]
[366045360,1750031432591,-151.0,0.00021993,7]
[366045361,1750031432601,-160.0,0.00021999,2]
[366045362,1750031432610,-151.0,0.00022,7]
[366045363,1750031432620,-151.0,0.00022,7]
[366045364,1750031432631,-162.465,0.00022,2]
[366045365,1750031432641,-460.0,0.0002207,4]
[366045366,1750031432651,-460.0,0.0002207,4]
[366045367,1750031432661,-601.0,0.00022071,2]
[366045368,1750031432671,-500.0,0.0002219,2]
[366045369,1750031432681,-485.40848779,0.0002219,2]
[366045370,1750031432690,-500.0,0.0002219,2]
[366045371,1750031432700,-460.0,0.00022191,4]
[366045373,1750031432709,-460.0,0.00022191,4]
[366045375,1750031432720,-256.14684753,0.00022191,4]
[366045377,1750031432730,-586.32657659,0.00022191,2]
[366045379,1750031432740,-460.0,0.00022191,4]
[366045381,1750031432750,-460.0,0.00022191,4]
[366045398,1750031432907,-460.0,0.00022191,4]
[366045400,1750031432918,-460.0,0.00022191,4]
[366045402,1750031432928,-460.0,0.00022191,4]
[366045405,1750031432939,-460.0,0.00022191,4]
[366045407,1750031432949,-460.0,0.00022191,4]
[366045409,1750031432959,-460.0,0.00022191,4]
[366045411,1750031432969,-460.0,0.00022191,4]
[366045412,1750031432979,-460.0,0.00022191,4]
[366045414,1750031432988,-460.0,0.00022191,4]
[366045417,1750031432999,-2260.66,0.00022191,4]
[366045419,1750031433008,-460.0,0.00022191,4]
[366045421,1750031433018,-460.0,0.00022191,4]
[366045423,1750031433027,-460.0,0.00022191,4]
[366045424,1750031433037,-460.0,0.00022191,4]
[366045426,1750031433047,-460.0,0.00022191,4]
[366045428,1750031433058,-460.0,0.00022191,4]
[366045430,1750031433067,-460.0,0.00022191,4]
[366045432,1750031433077,-460.0,0.00022191,4]
[366045434,1750031433087,-473.88,0.00022191,4]
[366045436,1750031433097,-460.0,0.00022191,4]
[366045438,1750031433107,-695.96,0.00022198,4]
[366045440,1750031433116,-156.93571734,0.000222,69]
[366045442,1750031433126,-695.96,0.00022298,6]
[366045444,1750031433136,-460.0,0.00022344,4]
[366045446,1750031433146,-262.92161226,0.00022344,4]
[366046243,1750031442996,-175.611551,0.00021146,2]
[366046244,1750031443006,-424.388449,0.00021917,4]
[366046454,1750031446428,-35.611551,0.00021917,4]
[366046456,1750031446438,-460.0,0.00021917,4]
[366046458,1750031446448,-460.0,0.0002207,4]
[366046460,1750031446457,-460.0,0.0002207,4]
[366046462,1750031446467,-460.0,0.00022191,4]
[366046464,1750031446476,-197.07838774,0.00022344,4]
[366046466,1750031446486,-460.0,0.00022344,4]
[366046468,1750031446495,-511.45340538,0.00022376,2]
[366046470,1750031446505,-695.96,0.00022398,2]
[366046472,1750031446515,-460.0,0.00022465,4]
[366046474,1750031446524,-460.0,0.00022465,4]
[366046476,1750031446534,-460.0,0.00022465,4]
[366046478,1750031446543,-460.0,0.00022465,4]
[366046480,1750031446552,-633.79600474,0.00022465,4]
[366048254,1750032031770,200.0,0.00024532,120]
[366048255,1750032053348,4209.11,0.00018,2]
[366048256,1750032082761,162.782487,0.00013699,2]
[366048258,1750032091304,200.0,0.00024055,120]
[366048259,1750032151369,200.0,0.00024649,120]
[366048261,1750032451137,-4712.05169907,0.0002,2]
[366048262,1750032451160,-283.50393638,0.00020244,2]
[366048263,1750032451181,-1535.8207713,0.00020413,2]
[366048264,1750032451203,-202.5371252,0.00020648,2]
[366048265,1750032451227,-1200.0,0.00021211,2]
[366048266,1750032451250,-300.0,0.00021211,2]
[366048267,1750032451272,-300.0,0.00021212,2]
[366048268,1750032451294,-162.465,0.00021212,2]
[366048269,1750032451317,-225.0,0.00021212,2]
[366048270,1750032451337,-250.0,0.00021212,2]
[366048271,1750032451362,-500.0,0.00021212,2]
[366048272,1750032451386,-539.78594145,0.00021212,2]
[366048273,1750032451408,-7791.67800414,0.00021213,2]
[366048276,1750032583691,189.00262425,0.00019113,2]
[366048298,1750032632055,-4737.39643018,0.0002,2]
[366048300,1750032632070,-5690.60356982,0.0002,2]
[366048302,1750032632079,-190.6880448,0.0002094,2]
[366048304,1750032632090,-1200.0,0.00021211,2]
[366048305,1750032632100,-500.0,0.00021212,2]
[366048306,1750032632110,-227.85015902,0.00021212,2]
[366048307,1750032632120,-17108.32199586,0.00021213,2]
[366048308,1750032632129,-366.99035651,0.00021489,2]
[366048309,1750032632139,-155.23989827,0.00021817,2]
[366048310,1750032632149,-835.55256958,0.00021917,2]
[366048311,1750032632159,-160.0,0.00021917,2]
[366048312,1750032632169,-213.32089821,0.00021917,2]
[366048313,1750032632179,-424.47602138,0.00021917,2]
[366048314,1750032632189,-160.0,0.00021917,2]
[366048315,1750032632199,-12535.62630729,0.00021917,2]
[366048316,1750032632209,-160.0,0.00021917,2]
[366048317,1750032632221,-229.86375354,0.00021917,2]
[366048319,1750032632231,-317.77774108,0.00021917,4]
[366048321,1750032632242,-430.0,0.00021917,4]
[366048323,1750032632251,-440.0,0.00021917,4]
[366048325,1750032632261,-549.73,0.00021917,4]
[366048327,1750032632271,-460.0,0.00021917,4]
[366048329,1750032632282,-460.0,0.00021917,4]
[366048331,1750032632296,-460.0,0.00021917,4]
[366048334,1750032632307,-2045.86,0.00021917,4]
[366048336,1750032632318,-460.0,0.00021917,4]
[366048338,1750032632328,-431.12293682,0.00021917,4]
[366048339,1750032632339,-460.0,0.00021917,4]
[366048341,1750032632350,-608.54838517,0.00021917,4]
[366048344,1750032632362,-460.0,0.00021917,4]
[366048346,1750032632372,-460.0,0.00021917,4]
[366048349,1750032632382,-460.0,0.00021917,4]
[366048352,1750032632392,-460.0,0.00021917,4]
[366048354,1750032632402,-460.0,0.00021917,4]
[366048356,1750032632413,-605.71,0.00021917,4]
[366048358,1750032632423,-460.0,0.00021917,4]
[366048360,1750032632433,-460.0,0.00021917,4]
[366048362,1750032632444,-160.0,0.00021918,2]
[366048364,1750032632455,-1018.07,0.00021934,2]
[366048366,1750032632464,-460.0,0.00021988,4]
[366048368,1750032632474,-400.0,0.00021988,4]
[366048370,1750032632484,-460.0,0.00021988,4]
[366048373,1750032632494,-165.0,0.00022,2]
[366048375,1750032632504,-460.0,0.0002207,2]
[366048377,1750032632514,-296.88185926,0.00022172,2]
[366048379,1750032632526,-409.93,0.00022191,4]
[366048381,1750032632537,-460.0,0.00022191,4]
[366048383,1750032632547,-460.0,0.00022191,4]
[366048385,1750032632557,-2045.86,0.00022191,4]
[366048387,1750032632568,-460.0,0.00022191,4]
[366048389,1750032632579,-460.0,0.00022191,4]
[366048391,1750032632591,-460.0,0.00022191,4]
[366048394,1750032632601,-467.59,0.00022191,4]
[366048395,1750032632610,-156.93571734,0.000222,69]
[366048398,1750032632622,-460.0,0.00022262,4]
[366048399,1750032632631,-240.0,0.00022297,2]
[366048402,1750032632641,-460.0,0.00022344,2]
[366048403,1750032632651,-240.0,0.00022354,2]
[366048405,1750032632661,-240.0,0.00022394,2]
[366048408,1750032632671,-240.0,0.00022463,2]
[366048410,1750032632681,-10018.19027426,0.00022465,2]
[366048414,1750032632716,-3341.92088091,0.00022465,2]
[366048416,1750032632727,-5416.46667962,0.00022465,2]
[366048419,1750032632740,-951.65363969,0.00022465,2]
[366048421,1750032632750,-152.02141137,0.00022465,4]
[366048423,1750032632759,-460.0,0.00022465,4]
[366048425,1750032632769,-2045.86,0.00022465,4]
[366048427,1750032632779,-460.0,0.00022465,4]
[366048429,1750032632788,-460.0,0.00022465,4]
[366048431,1750032632798,-306.0,0.00022466,2]
[366048433,1750032632807,-191.05,0.00022488,10]
[366048435,1750032632818,-695.96,0.00022498,5]
[366048437,1750032632828,-240.0,0.00022506,2]
[366048439,1750032632838,-641.0,0.00022507,2]
[366048441,1750032632848,-460.0,0.00022536,4]
[366048443,1750032632858,-240.0,0.00022565,2]
[366048445,1750032632868,-155.23989825,0.00022573,2]
[366048447,1750032632878,-695.96,0.00022598,5]
[366048449,1750032632888,-607.93,0.00022618,2]
[366048451,1750032632898,-500.0,0.00022618,2]
[366048452,1750032632908,-601.0,0.00022628,2]
[366048453,1750032632919,-500.0,0.00022669,2]
[366048454,1750032632931,-695.96,0.00022698,3]
[366048455,1750032632942,-160.0,0.00022738,2]
[366048456,1750032632952,-460.0,0.00022739,4]
[366048457,1750032632962,-2045.86,0.00022739,4]
[366048458,1750032632972,-460.0,0.00022739,4]
[366048459,1750032632982,-460.0,0.00022739,4]
[366048460,1750032632992,-601.0,0.00022763,2]
[366048461,1750032633002,-695.96,0.00022798,6]
[366048462,1750032633014,-460.0,0.0002281,4]
[366048463,1750032633028,-695.96,0.00022898,6]
[366048464,1750032633038,-695.96,0.00022998,7]
[366048465,1750032633049,-641.0,0.00023006,2]
[366048467,1750032633060,-460.0,0.00023013,4]
[366048469,1750032633070,-2045.86,0.00023013,4]
[366048471,1750032633080,-460.0,0.00023013,4]
[366048473,1750032633091,-460.0,0.00023013,4]
[366048475,1750032633101,-420.0,0.00023068,2]
[366048477,1750032633111,-460.0,0.00023084,4]
[366048479,1750032633121,-695.96,0.00023098,6]
[366048481,1750032633132,-161.0,0.00023177,2]
[366048483,1750032633143,-695.96,0.00023198,5]
[366048485,1750032633152,-500.0,0.00023217,2]
[366048486,1750032633162,-5000.0,0.00023233,2]
[366048488,1750032633172,-939.08365684,0.00023233,2]
[366048490,1750032633182,-1688.0,0.00023233,2]
[366048492,1750032633192,-500.0,0.00023233,2]
[366048495,1750032633202,-500.0,0.00023233,2]
[366048497,1750032633213,-500.0,0.00023233,2]
[366048499,1750032633222,-500.0,0.00023233,2]
[366048501,1750032633233,-500.0,0.00023233,2]
[366048502,1750032633243,-500.0,0.00023233,2]
[366048504,1750032633253,-500.0,0.00023233,2]
[366048506,1750032633264,-500.0,0.00023233,2]
[366048508,1750032633274,-500.0,0.00023233,2]
[366048510,1750032633285,-500.0,0.00023233,2]
[366048512,1750032633295,-207.4,0.00023233,2]
[366048514,1750032633306,-500.0,0.00023233,2]
[366048516,1750032633316,-500.0,0.00023233,2]
[366048518,1750032633326,-500.0,0.00023233,2]
[366048520,1750032633335,-500.0,0.00023233,2]
[366048522,1750032633345,-535.97644517,0.00023233,2]
[366048524,1750032633355,-460.0,0.00023287,4]
[366048542,1750032633521,-2045.86,0.00023287,4]
[366048544,1750032633531,-460.0,0.00023287,4]
[366048546,1750032633542,-460.0,0.00023287,4]
[366048548,1750032633552,-1206.00130259,0.00023288,2]
[366048550,1750032633563,-695.96,0.00023298,7]
[366048552,1750032633573,-155.23989825,0.00023329,2]
[366048554,1750032633584,-460.0,0.00023358,4]
[366048556,1750032633594,-695.96,0.00023398,2]
[366048558,1750032633606,-150.0,0.000234,2]
[366048560,1750032633616,-641.0,0.000234,2]
[366048562,1750032633628,-601.0,0.00023442,2]
[366048564,1750032633639,-695.96,0.00023498,2]
[366048566,1750032633649,-653.0,0.00023506,2]
[366048568,1750032633659,-2160.0,0.00023506,2]
[366048570,1750032633670,-460.0,0.00023561,4]
[366048572,1750032633679,-2045.86,0.00023561,4]
[366048574,1750032633689,-460.0,0.00023561,4]
[366048576,1750032633699,-460.0,0.00023561,4]
[366048578,1750032633709,-641.0,0.00023586,2]
[366048580,1750032633719,-695.96,0.00023598,5]
[366048582,1750032633729,-992.76,0.000236,2]
[366048584,1750032633739,-641.0,0.00023609,2]
[366048586,1750032633749,-460.0,0.00023632,4]
[366048588,1750032633759,-695.96,0.00023698,2]
[366048590,1750032633769,-601.0,0.0002376,2]
[366048592,1750032633779,-5000.0,0.00023781,2]
[366048595,1750032633802,-695.96,0.00023798,3]
[366048598,1750032633817,-460.0,0.00023835,4]
[366048600,1750032633828,-2045.86,0.00023835,4]
[366048602,1750032633840,-460.0,0.00023835,4]
[366048604,1750032633851,-460.0,0.00023835,4]
[366048606,1750032633862,-718.44,0.00023888,3]
[366048608,1750032633873,-695.96,0.00023898,6]
[366048610,1750032633887,-460.0,0.00023906,4]
[366048612,1750032633898,-2036.14,0.00023928,2]
[366048614,1750032633910,-695.96,0.00023998,5]
[366048617,1750032633923,-155.23989825,0.00024085,2]
[366048619,1750032633934,-695.96,0.00024098,2]
[366048621,1750032633945,-160.0,0.00024108,2]
[366048623,1750032633957,-460.0,0.00024109,4]
[366048625,1750032633968,-2045.86,0.00024109,4]
[366048627,1750032633979,-460.0,0.00024109,4]
[366048629,1750032633990,-460.0,0.00024109,4]
[366048631,1750032634000,-573.8932911,0.0002411,2]
[366048633,1750032634011,-189.00262425,0.00024113,2]
[366048635,1750032634021,-460.0,0.0002418,4]
[366048637,1750032634031,-695.96,0.00024198,4]
[366048639,1750032634042,-695.96,0.00024298,3]
[366048641,1750032634053,-1033.236768,0.00024303,3]
[366048643,1750032634065,-5000.0,0.00024329,2]
[366048645,1750032634076,-460.0,0.00024383,4]
[366048647,1750032634087,-2045.86,0.00024383,4]
[366048648,1750032634098,-322.8,0.00024383,4]
[366048650,1750032634109,-460.0,0.00024383,4]
[366048653,1750032634120,-695.96,0.00024398,2]
[366048655,1750032634132,-159.55,0.00024454,4]
[366048657,1750032634143,-601.0,0.00024484,2]
[366048659,1750032634154,-695.96,0.00024498,4]
[366048661,1750032634164,-601.0,0.00024598,2]
[366048663,1750032634175,-695.96,0.00024598,5]
[366048665,1750032634186,-215.0738,0.00024602,2]
[366048667,1750032634197,-2200.0,0.00024625,2]
[366048669,1750032634208,-460.0,0.00024657,4]
[366048671,1750032634219,-2045.86,0.00024657,4]
[366048673,1750032634230,-460.0,0.00024657,4]
[366048675,1750032634241,-1000.0,0.00024658,2]
[366048677,1750032634252,-1000.0,0.00024658,2]